bitfinex/quotes_ETHUSD_20241223
["timestamp","ask_amount","ask_price","bid_price","bid_amount"]
[1734952625054,3.0,3342.0,3341.0,0.6628]
[1734952625255,0.8285,3342.5,3341.3,0.55]
[1734952625410,2.99218,3342.1,3341.4,0.6628]
[1734952625610,2.99218,3342.1,3341.4,0.75521621]
[1734952625969,0.8285,3342.5,3341.4,0.6628]
[1734952626162,0.8285,3342.5,3340.8,0.6628]
[1734952626455,2.99259,3341.6,3340.8,0.6628]
[1734952626661,3.82174,3342.2,3340.8,0.6628]
[1734952626869,0.382174,3342.1,3340.8,0.6628]
[1734952627212,0.8297,3341.9,3340.8,0.6628]
[1734952627430,2.99349,3340.6,3340.4,0.6628]
[1734952627635,2.99356,3340.5,3340.1,0.6628]
[1734952627845,2.99337,3340.8,3340.1,0.6628]
[1734952628043,2.99314,3341.0,3340.1,0.6628]
[1734952628346,1.511909,3341.5,3340.3,0.6628]
[1734952629126,3.0,3341.3,3340.4,0.55]
[1734952629365,2.99302,3341.1,3340.4,0.55]
[1734952629776,3.8297,3341.5,3340.4,0.55]
[1734952629925,2.99295,3341.2,3340.4,0.55]
[1734952630326,2.99307,3341.1,3340.4,0.55]
[1734952631185,0.8297,3341.5,3340.3,0.6628]
[1734952631387,2.9932,3340.9,3340.3,0.6628]
[1734952632278,2.99336,3340.8,3340.3,0.6628]
[1734952633384,2.99338,3340.7,3340.3,0.6628]
[1734952633928,2.99299,3341.2,3340.3,0.6628]
[1734952634183,2.99323,3340.9,3340.3,0.6628]
[1734952634390,2.99332,3340.8,3340.3,0.6628]
[1734952635467,0.8297,3341.5,3340.3,0.6628]
[1734952635783,2.99266,3341.6,3340.7,0.6628]
[1734952636141,2.99266,3341.6,3340.8,0.64010419]
[1734952636486,3.90023017,3342.1,3340.8,0.64010419]
[1734952636793,3.10753017,3342.1,3341.3,0.6628]
[1734952636982,3.10753017,3342.1,3341.4,0.42058]
[1734952637297,3.10753017,3342.1,3341.4,0.09000558]
[1734952637629,4.52083682,3342.4,3341.4,0.09000558]
[1734952637630,2.99256,3341.7,3341.4,0.09000558]
[1734952637936,3.0,3342.2,3341.4,0.09000558]
[1734952638136,2.99266,3341.5,3341.4,0.09000558]
[1734952638366,0.7927,3342.4,3341.4,0.09000558]
[1734952638561,2.99238,3341.9,3341.4,0.09000558]
[1734952639114,0.42092154,3342.3,3341.4,0.09000558]
[1734952639299,3.42092154,3342.3,3341.4,0.09000558]
[1734952639480,2.99258,3341.6,3341.4,0.09000558]
[1734952639811,2.99266,3341.5,3341.4,0.09000558]
[1734952640311,2.99266,3341.5,3341.1,0.6628]
[1734952640500,2.99251,3341.7,3341.1,0.6628]
[1734952640993,2.99251,3341.7,3341.2,0.08958495]
[1734952641199,2.99258,3341.6,3341.2,0.08958495]
[1734952643363,0.7927,3341.8,3341.2,0.08958495]
[1734952643530,2.99251,3341.7,3341.2,0.08958495]
[1734952643891,2.99257,3341.6,3341.2,0.08958495]
[1734952644094,0.7927,3341.8,3341.2,0.08958495]
[1734952644552,2.99257,3341.7,3341.2,0.08958495]
[1734952645416,0.7547,3342.0,3341.2,0.08958495]
[1734952645589,2.9924,3341.8,3341.2,0.08958495]
[1734952647028,0.7547,3342.0,3341.2,0.08958495]
[1734952647235,2.9925,3341.7,3341.2,0.08958495]
[1734952648322,2.99262,3341.6,3341.2,0.08958495]
[1734952649570,1.47147015,3342.0,3341.2,0.08958495]
[1734952649712,2.99243,3341.8,3341.2,0.08958495]
[1734952649920,2.99249,3341.7,3341.2,0.08958495]
[1734952650258,2.99247,3341.8,3341.2,0.08958495]
[1734952650550,2.99254,3341.7,3341.2,0.08958495]
[1734952650763,0.44640102,3341.7,3341.2,0.08958495]
[1734952650896,2.99284,3341.3,3341.2,0.08958495]
[1734952651098,2.99284,3341.3,3340.5,1.23671993]
[1734952651414,2.99284,3341.3,3340.6,1.32255564]
[1734952651617,2.99302,3341.2,3340.6,1.32255564]
[1734952651956,2.99276,3341.4,3340.6,1.70659919]
[1734952652095,2.9929,3341.3,3340.7,0.6628]
[1734952652845,2.99301,3341.2,3340.8,0.08583571]
[1734952653054,3.0,3341.7,3340.8,0.08583571]
[1734952653238,2.99285,3341.3,3340.7,0.6628]
[1734952653605,2.99285,3341.3,3340.8,0.08583571]
[1734952653838,2.99285,3341.3,3340.7,0.6628]
[1734952654036,0.299285,3341.3,3340.7,0.6628]
[1734952654253,0.299285,3341.3,3340.8,0.08583571]
[1734952654456,2.99293,3341.2,3340.8,0.08583571]
[1734952654820,2.99293,3341.2,3340.7,0.6628]
[1734952655899,2.99293,3341.2,3340.8,0.08583571]
[1734952656137,2.99277,3341.4,3340.7,0.6628]
[1734952656516,2.9928,3341.4,3340.7,0.6628]
[1734952656722,2.9928,3341.4,3340.8,0.08583571]
[1734952656937,2.99286,3341.3,3340.7,0.6628]
[1734952657525,2.99286,3341.3,3340.8,0.08583571]
[1734952658056,2.99286,3341.3,3340.7,0.6628]
[1734952658568,2.99286,3341.3,3340.8,0.08583571]
[1734952661886,2.99251,3341.7,3340.8,0.08583571]
[1734952662037,2.99251,3341.7,3340.9,0.6628]
[1734952662232,2.99259,3341.6,3340.9,0.6628]
[1734952662594,2.99259,3341.6,3341.0,0.08637384]
[1734952663390,2.99248,3341.7,3341.0,0.08637384]
[1734952663693,2.99265,3341.6,3341.0,0.08637384]
[1734952663853,2.99262,3341.6,3341.0,0.08637384]
[1734952664501,0.378612,3341.6,3341.0,0.08637384]
[1734952664731,5.99302,3341.1,3341.0,0.08637384]
[1734952664843,5.99302,3341.1,3340.5,0.6628]
[1734952665194,2.9932,3340.9,3340.6,0.08630165]
[1734952665341,2.99338,3340.7,3340.6,0.08630165]
[1734952665536,2.99338,3340.7,3340.3,1.23671993]
[1734952665784,2.99338,3340.7,3340.6,0.08630165]
[1734952665992,2.99338,3340.7,3340.2,0.6628]
[1734952666155,2.99338,3340.7,3340.6,0.08630165]
[1734952666355,2.99338,3340.7,3340.2,0.6628]
[1734952666869,2.99338,3340.7,3340.3,0.08630165]
[1734952668392,0.299338,3340.7,3340.3,0.08630165]
[1734952668693,0.7778,3341.0,3340.3,0.08630165]
[1734952668694,2.99358,3340.5,3340.3,0.08630165]
[1734952669091,2.99342,3340.7,3340.3,0.08630165]
[1734952669795,2.99327,3340.9,3340.3,0.08630165]
[1734952670239,2.99303,3341.1,3340.3,0.0299369]
[1734952670446,2.99303,3341.1,3340.2,0.6628]
[1734952670666,2.99303,3341.1,3340.4,0.08670206]
[1734952670836,2.99303,3341.1,3340.3,0.08669549]
[1734952671036,2.99303,3341.1,3340.5,0.08670862]
[1734952671290,2.99303,3341.1,3340.2,0.6628]
[1734952671458,2.99303,3341.1,3340.6,0.08670862]
[1734952671660,2.99303,3341.1,3340.3,0.55]
[1734952671859,2.99303,3341.1,3340.8,0.6628]
[1734952673477,2.99303,3341.1,3339.9,4.8491499]
[1734952673478,2.99303,3341.1,3340.4,0.6628]
[1734952673889,2.99303,3341.1,3340.5,0.08667577]
[1734952674400,2.99272,3341.5,3340.6,0.6628]
[1734952674704,2.99272,3341.5,3340.8,0.6628]
[1734952674862,2.9925,3341.7,3340.8,0.6628]
[1734952675044,2.9925,3341.7,3340.9,0.08667577]
[1734952676149,2.99258,3341.6,3340.9,0.08667577]
[1734952676545,2.99272,3341.5,3340.9,0.08667577]
[1734952676806,2.99287,3341.3,3340.9,0.08667577]
[1734952677898,0.375712,3341.5,3340.9,0.08667577]
[1734952678193,2.99301,3341.2,3340.8,0.6628]
[1734952678395,2.99302,3341.1,3340.8,0.6628]
[1734952679150,3.0,3341.7,3340.8,0.6628]
[1734952679346,2.99259,3341.6,3340.8,0.6628]
[1734952679551,2.99259,3341.6,3340.8,0.69273025]
[1734952679751,2.99259,3341.6,3340.9,0.08658388]
[1734952679999,2.99248,3341.8,3341.0,0.6628]
[1734952680551,2.99248,3341.8,3341.1,0.08658388]
[1734952680910,2.9926,3341.6,3341.1,0.08658388]
[1734952681207,2.99256,3341.7,3341.1,0.08658388]
[1734952682097,3.8233,3342.2,3341.1,0.08658388]
[1734952682305,2.99261,3341.6,3341.1,0.08658388]
[1734952682652,3.0,3341.9,3341.1,0.08658388]
[1734952682851,2.99248,3341.7,3341.1,0.08658388]
[1734952683101,2.99293,3341.2,3341.1,0.08658388]
[1734952683859,3.85853017,3341.8,3341.1,0.08658388]
[1734952684064,2.99275,3341.4,3341.1,0.08658388]
[1734952684596,2.99293,3341.2,3341.1,0.08658388]
[1734952684803,2.99341,3340.7,3340.4,0.6628]
[1734952685103,2.99311,3341.0,3340.4,0.6628]
[1734952685252,3.39591608,3341.0,3340.4,0.6628]
[1734952685458,3.0,3340.9,3340.2,1.89951993]
[1734952685752,2.99329,3340.8,3340.2,1.89951993]
[1734952685989,2.99346,3340.7,3340.2,1.89951993]
[1734952686183,2.99346,3340.7,3340.2,0.6628]
[1734952686399,5.99324,3340.9,3340.2,0.6628]
[1734952686601,2.99357,3340.5,3340.2,0.6628]
[1734952686803,3.817,3340.7,3339.8,0.6628]
[1734952687006,3.0,3340.6,3339.8,0.6628]
[1734952687160,0.817,3340.7,3339.7,1.23671993]
[1734952687378,2.99399,3340.1,3339.7,1.23671993]
[1734952687779,2.99402,3340.0,3339.7,1.23671993]
[1734952688283,2.99402,3340.0,3339.5,0.6628]
[1734952688485,0.299402,3340.0,3339.5,0.6628]
[1734952688802,2.99401,3340.0,3339.0,1.23671993]
[1734952689120,2.99474,3339.2,3339.0,1.89951993]
[1734952689304,2.99474,3339.2,3339.0,0.6628]
[1734952689925,3.0,3339.9,3338.8,1.89951993]
[1734952689926,3.0,3339.4,3338.8,1.89951993]
[1734952690221,3.0,3339.4,3338.8,1.23671993]
[1734952690378,2.99484,3339.1,3338.8,1.23671993]
[1734952690581,2.99484,3339.1,3338.6,0.1711951]
[1734952690786,3.0,3339.4,3338.6,0.1711951]
[1734952690978,2.99499,3338.9,3338.6,0.1711951]
[1734952691434,0.3817,3339.3,3338.6,0.1711951]
[1734952691435,2.99483,3339.1,3338.6,0.1711951]
[1734952691579,2.99488,3339.1,3338.6,0.1711951]
[1734952696129,2.99466,3339.3,3338.6,0.1711951]
[1734952696298,2.99466,3339.3,3338.7,0.74892998]
[1734952696488,3.0,3339.2,3338.7,0.74892998]
[1734952697082,2.99477,3339.2,3338.7,0.74892998]
[1734952698545,3.0,3339.4,3338.7,0.74892998]
[1734952698825,2.99492,3339.0,3338.7,0.74892998]
[1734952699179,0.817,3339.6,3338.7,0.74892998]
[1734952699386,2.99456,3339.4,3338.7,0.74892998]
[1734952699599,2.99465,3339.3,3338.7,0.74892998]
[1734952702331,2.99447,3339.5,3338.7,0.74892998]
[1734952702488,2.9943,3339.7,3338.8,0.55]
[1734952702691,2.9943,3339.7,3338.9,0.6628]
[1734952702888,2.9943,3339.7,3338.9,0.74932424]
[1734952703401,2.99438,3339.6,3338.9,0.74932424]
[1734952703649,2.99449,3339.5,3338.9,0.74932424]
[1734952704829,2.99464,3339.3,3338.9,0.74932424]
[1734952706997,2.99484,3339.1,3338.9,0.74932424]
[1734952707543,2.9949,3339.0,3338.9,0.74932424]
[1734952707694,2.9949,3339.0,3338.9,0.08652424]
[1734952707887,0.792,3339.4,3338.6,0.8339951]
[1734952708092,0.378643,3339.3,3338.6,0.8339951]
[1734952708331,2.99508,3338.8,3338.7,0.0861825]
[1734952708519,2.99508,3338.8,3338.6,0.8339951]
[1734952708720,2.99508,3338.8,3338.6,0.1711951]
[1734952709408,2.99517,3338.7,3338.6,0.1711951]
[1734952709607,3.669946,3338.7,3338.6,0.1711951]
[1734952713560,3.0,3338.9,3338.6,0.1711951]
[1734952713856,0.48027641,3340.2,3338.7,0.6628]
[1734952713857,2.99468,3339.3,3338.7,0.6628]
[1734952714419,2.99468,3339.3,3338.8,0.08104544]
[1734952715055,2.99468,3339.3,3338.7,0.6628]
[1734952715353,2.99468,3339.3,3338.9,0.08104544]
[1734952715544,2.99468,3339.3,3338.7,0.6628]
[1734952715931,2.99468,3339.3,3338.8,0.08104544]
[1734952716345,2.99468,3339.3,3338.7,0.6628]
[1734952716346,2.99444,3339.6,3338.7,0.6628]
[1734952716549,3.0,3340.1,3338.6,0.1711951]
[1734952716550,0.8093,3340.1,3338.9,0.6628]
[1734952716743,2.99375,3340.3,3339.3,0.6628]
[1734952716945,2.99375,3340.3,3339.5,0.6628]
[1734952717145,2.99383,3340.2,3339.5,0.6628]
[1734952717349,2.99383,3340.2,3339.6,0.08059847]
[1734952718982,2.99406,3340.0,3339.6,0.08059847]
[1734952719273,0.8093,3340.4,3339.6,0.08059847]
[1734952719484,2.99413,3339.9,3339.6,0.08059847]
[1734952721493,2.9942,3339.8,3339.6,0.08059847]
[1734952721637,0.8093,3340.4,3339.6,0.08059847]
[1734952721837,2.99403,3340.0,3339.6,0.08059847]
[1734952722278,2.99403,3340.0,3339.5,0.6628]
[1734952722430,2.99403,3340.0,3339.7,0.08000054]
[1734952722781,2.99384,3340.2,3339.5,0.6628]
[1734952723133,0.8093,3340.4,3339.5,0.6628]
[1734952723134,2.99397,3340.1,3339.6,0.08000054]
[1734952724550,0.8093,3340.4,3339.6,0.08000054]
[1734952724737,2.99385,3340.2,3339.6,0.08000054]
[1734952725334,0.8093,3340.4,3339.6,0.08000054]
[1734952725641,3.0,3340.6,3339.7,0.6628]
[1734952725953,0.7856,3340.7,3339.7,0.6628]
[1734952725954,0.37856,3340.5,3339.7,0.6628]
[1734952726154,0.7856,3340.7,3339.8,0.07998083]
[1734952726484,0.7856,3340.7,3339.7,0.6628]
[1734952726666,2.99409,3340.0,3339.7,0.6628]
[1734952726995,2.99409,3340.0,3339.8,0.07998083]
[1734952727186,2.99409,3340.0,3339.7,0.6628]
[1734952727785,2.99409,3340.0,3339.8,0.07998083]
[1734952727988,2.99409,3340.0,3339.7,0.6628]
[1734952728208,2.9941,3339.9,3339.2,0.6628]
[1734952728490,2.9941,3339.9,3339.8,0.07998083]
[1734952728732,2.99424,3339.8,3339.2,0.6628]
[1734952729040,2.99424,3339.8,3339.3,0.07998083]
[1734952729282,2.99424,3339.8,3339.2,0.6628]
[1734952729488,0.7856,3340.3,3339.4,0.07998083]
[1734952729489,2.99399,3340.1,3339.4,0.07998083]
[1734952729688,2.99362,3340.5,3339.5,0.6628]
[1734952729896,2.99387,3340.2,3339.5,0.74278083]
[1734952730461,2.99368,3340.4,3339.5,0.74278083]
[1734952731204,2.99368,3340.4,3339.5,0.91648103]
[1734952731890,2.99374,3340.3,3339.5,0.91648103]
[1734952732091,2.99374,3340.3,3339.5,0.74278083]
[1734952732595,2.99384,3340.2,3339.5,0.74278083]
[1734952732945,2.99429,3339.7,3339.5,0.74278083]
[1734952733145,2.99418,3339.9,3339.5,0.74278083]
[1734952734201,3.82082,3340.1,3339.5,0.6628]
[1734952734493,2.99422,3339.8,3339.5,0.6628]
[1734952735395,0.382082,3340.0,3339.0,0.6628]
[1734952735396,2.99437,3339.6,3339.0,0.6628]
[1734952735749,2.99437,3339.6,3339.1,0.08005969]
[1734952738493,0.382082,3340.0,3339.1,0.08005969]
[1734952738494,2.99422,3339.8,3339.1,0.08005969]
[1734952738699,3.376102,3340.0,3339.1,0.08005969]
[1734952738862,0.382082,3340.0,3339.1,0.08005969]
[1734952739068,0.8269,3340.1,3339.1,0.08005969]
[1734952739249,2.9942,3339.8,3339.1,0.08005969]
[1734952739663,3.0,3340.2,3339.2,0.6628]
[1734952739991,3.69333483,3340.7,3339.3,0.55]
[1734952739992,0.8229,3340.6,3339.3,0.55]
[1734952740184,0.8229,3340.6,3339.4,0.6628]
[1734952740509,0.8229,3340.6,3339.4,0.7430568]
[1734952740667,0.39304302,3340.5,3339.4,0.7430568]
[1734952740853,2.99374,3340.3,3339.4,0.7430568]
[1734952743403,0.39304302,3340.5,3339.4,0.7430568]
[1734952743605,2.99384,3340.2,3339.4,0.7430568]
[1734952744006,0.39304302,3340.5,3339.4,0.7430568]
[1734952744211,3.38669302,3340.5,3339.4,0.7430568]
[1734952744573,3.38669302,3340.5,3339.5,0.42877768]
[1734952744767,2.99367,3340.4,3339.6,0.6628]
[1734952744965,2.99367,3340.4,3339.7,0.0801451]
[1734952745160,0.39304302,3340.5,3339.7,0.0801451]
[1734952745413,2.99419,3339.8,3339.7,0.0801451]
[1734952745763,0.39304302,3340.5,3339.7,0.0801451]
[1734952746002,2.99382,3340.3,3339.7,0.0801451]
[1734952746314,2.99385,3340.2,3339.7,0.0801451]
[1734952746893,2.99367,3340.4,3339.7,0.0801451]
[1734952747414,2.99375,3340.3,3339.7,0.0801451]
[1734952748793,2.99404,3340.0,3339.7,0.0801451]
[1734952748981,2.9941,3339.9,3339.7,0.0801451]
[1734952750079,0.299404,3340.0,3339.7,0.0801451]
[1734952750285,2.99394,3340.1,3339.7,0.0801451]
[1734952750497,3.38665302,3340.5,3339.7,0.0801451]
[1734952750498,2.99403,3340.0,3339.7,0.0801451]
[1734952751019,2.99403,3340.0,3339.6,0.6628]
[1734952751164,2.99374,3340.3,3339.6,0.6628]
[1734952751365,0.7159693,3340.3,3339.8,0.07954729]
[1734952751722,0.7159693,3340.3,3339.6,0.6628]
[1734952751723,2.99393,3340.1,3339.6,0.6628]
[1734952752067,2.99403,3340.0,3339.7,0.07965239]
[1734952752584,2.99403,3340.0,3339.6,0.6628]
[1734952753020,2.99403,3340.0,3339.7,0.07929294]
[1734952753521,2.99403,3340.0,3339.6,0.6628]
[1734952753883,5.99325,3340.9,3339.8,0.6628]
[1734952754087,3.10753017,3341.0,3339.9,4.23683737]
[1734952754285,3.10753017,3341.0,3340.0,0.6628]
[1734952754487,3.10753017,3341.0,3340.2,0.6628]
[1734952754720,6.10035017,3341.4,3340.4,0.6628]
[1734952754864,2.99256,3341.7,3340.6,0.6628]
[1734952755069,2.99258,3341.6,3340.6,0.6628]
[1734952755268,2.99258,3341.6,3340.7,0.07909589]
[1734952755971,0.8242,3341.8,3340.7,0.07909589]
[1734952756289,2.99293,3341.2,3340.7,0.07909589]
[1734952756507,2.99306,3341.1,3340.7,0.07909589]
[1734952756671,2.99312,3341.0,3340.7,0.07909589]
[1734952756874,2.99294,3341.2,3340.7,0.07909589]
[1734952757073,2.99312,3341.0,3340.6,0.6628]
[1734952757391,2.99312,3341.0,3340.8,0.07870188]
[1734952757724,2.99312,3341.0,3340.6,0.6628]
[1734952758120,2.99312,3341.0,3340.7,0.07870188]
[1734952758271,2.99312,3341.0,3340.6,0.6628]
[1734952758473,2.99312,3341.0,3340.3,0.6628]
[1734952758866,3.381646,3341.8,3340.4,0.07870188]
[1734952758867,2.99302,3341.2,3340.4,0.07870188]
[1734952759720,3.773,3341.4,3340.4,0.07870188]
[1734952759916,2.99311,3341.1,3340.4,0.07870188]
[1734952760989,3.0,3341.4,3340.5,0.6628]
[1734952761527,3.0,3341.4,3340.7,0.6628]
[1734952762210,2.99276,3341.4,3340.8,0.07870188]
[1734952763190,3.773,3341.8,3340.8,0.07870188]
[1734952763191,2.99288,3341.3,3340.8,0.07870188]
[1734952764809,2.99261,3341.6,3340.8,0.07870188]
[1734952765128,2.99275,3341.4,3340.9,0.6628]
[1734952765929,2.99262,3341.6,3340.9,0.6628]
[1734952766288,2.99262,3341.6,3341.0,0.07807152]
[1734952767026,2.99284,3341.4,3341.0,0.07807152]
[1734952767378,2.99284,3341.4,3340.9,0.6628]
[1734952768824,2.99272,3341.5,3340.9,0.6628]
[1734952769043,6.12365084,3342.4,3340.9,0.6628]
[1734952769044,2.9925,3341.7,3340.9,0.6628]
[1734952769375,2.9925,3341.7,3341.0,0.07807152]
[1734952770221,2.9925,3341.7,3341.1,0.6628]
[1734952770379,2.99263,3341.6,3341.1,0.6628]
[1734952770779,2.99263,3341.6,3341.2,0.07807152]
[1734952771115,2.99263,3341.6,3341.1,0.6628]
[1734952771279,3.291923,3341.6,3341.1,0.6628]
[1734952771479,3.291923,3341.6,3341.2,0.07767108]
[1734952771691,3.291923,3341.6,3341.1,0.6628]
[1734952772016,2.99266,3341.6,3341.2,0.07765139]
[1734952772175,2.99266,3341.6,3341.1,0.6628]
[1734952772376,3.74516,3341.6,3340.8,0.6628]
[1734952772804,3.74516,3341.6,3340.9,0.07765139]
[1734952773385,2.99266,3341.6,3340.9,0.07765139]
[1734952775049,3.7994,3342.4,3341.0,0.6628]
[1734952775228,0.7994,3342.4,3341.2,0.6628]
[1734952775429,3.13177084,3342.5,3341.3,0.02992526]
[1734952775752,3.13177084,3342.6,3341.5,0.6628]
[1734952775962,3.13177084,3342.6,3341.8,0.6628]
[1734952776098,3.13177084,3342.6,3342.0,0.6628]
[1734952776619,2.99104,3343.4,3342.2,0.6628]
[1734952776620,2.99125,3343.1,3342.2,0.6628]
[1734952777131,2.99133,3343.0,3342.3,0.0771592]
[1734952779018,2.99141,3342.9,3342.3,0.0771592]
[1734952779216,3.0,3343.3,3342.3,0.0771592]
[1734952779417,2.99126,3343.1,3342.4,0.6628]
[1734952779751,2.99126,3343.1,3342.5,0.07713952]
[1734952781341,2.99132,3343.0,3342.5,0.07713952]
[1734952781521,2.99132,3343.0,3342.4,0.6628]
[1734952781849,2.99177,3342.5,3341.8,0.6628]
[1734952782018,2.99177,3342.5,3341.8,0.83239771]
[1734952782194,2.99147,3342.9,3341.8,0.6628]
[1734952782195,2.99207,3342.2,3341.8,0.6628]
[1734952782399,0.8101,3342.6,3341.8,0.6628]
[1734952782628,2.99207,3342.2,3341.9,0.07697976]
[1734952782834,2.99213,3342.1,3341.9,0.07697976]
[1734952783330,2.99213,3342.1,3341.8,0.6628]
[1734952783527,2.99192,3342.4,3341.8,0.6628]
[1734952783943,3.0,3342.8,3341.8,0.6628]
[1734952784101,2.99169,3342.6,3341.8,0.6628]
[1734952784501,2.99187,3342.4,3341.9,0.07697976]
[1734952785047,2.99187,3342.4,3341.8,0.6628]
[1734952785250,0.680157,3342.8,3341.8,0.6628]
[1734952785544,0.680157,3342.8,3341.9,0.07697976]
[1734952785545,2.99174,3342.6,3341.9,0.07697976]
[1734952785755,0.3671897,3342.5,3341.9,0.07697976]
[1734952785955,2.99217,3342.1,3341.9,0.07697976]
[1734952786303,2.99196,3342.3,3341.9,0.07697976]
[1734952787040,0.3671897,3342.5,3341.9,0.07697976]
[1734952787721,3.3589897,3342.5,3341.9,0.07697976]
[1734952787918,2.9921,3342.2,3341.9,0.07697976]
[1734952788561,2.9921,3342.2,3341.8,0.6628]
[1734952789664,0.81758711,3342.4,3341.8,0.6628]
[1734952789867,2.99215,3342.1,3341.8,0.6628]
[1734952793367,2.99204,3342.2,3341.8,0.6628]
[1734952794566,2.99209,3342.2,3341.8,0.6628]
[1734952795676,2.99209,3342.2,3341.9,0.07633014]
[1734952795976,2.99209,3342.2,3341.8,0.6628]
[1734952796164,2.99186,3342.4,3341.8,0.6628]
[1734952796330,2.99177,3342.5,3341.8,0.6628]
[1734952796331,2.99177,3342.5,3341.9,0.07633014]
[1734952796665,2.99177,3342.5,3341.8,0.6628]
[1734952796666,2.99216,3342.1,3341.8,0.6628]
[1734952796880,2.99216,3342.1,3342.0,0.07633014]
[1734952797230,2.99216,3342.1,3341.8,0.6628]
[1734952798486,2.99228,3342.0,3341.8,0.6628]
[1734952798686,2.9923,3341.9,3341.8,0.6628]
[1734952798885,2.9923,3341.9,3340.6,1.25014663]
[1734952798886,2.99259,3341.6,3341.5,0.6628]
[1734952799449,2.99259,3341.6,3341.5,0.73932041]
[1734952799884,2.99243,3341.8,3341.5,0.73932041]
[1734952800548,2.99257,3341.6,3341.5,0.07652041]
[1734952800776,2.99279,3341.4,3341.0,0.6628]
[1734952801291,2.99293,3341.2,3341.1,0.07652041]
[1734952801806,2.99215,3342.1,3340.7,2.17612838]
[1734952801950,2.99215,3342.1,3341.1,0.6628]
[1734952802149,3.0,3342.2,3341.3,0.6628]
[1734952802150,2.99206,3342.2,3341.3,0.6628]
[1734952802557,2.99206,3342.2,3341.4,0.07652041]
[1734952802766,2.99231,3341.9,3341.4,0.07652041]
[1734952804356,2.99216,3342.1,3341.4,0.07652041]
[1734952804755,0.8207,3342.5,3341.5,0.6628]
[1734952804996,2.99151,3342.8,3341.7,0.6628]
[1734952805200,2.99151,3342.8,3341.9,0.6628]
[1734952805579,3.89147084,3343.0,3342.0,0.07652041]
[1734952805881,2.99177,3342.5,3342.0,0.07652041]
[1734952806091,2.99156,3342.8,3342.0,0.07652041]
[1734952806275,2.99156,3342.8,3342.1,0.6628]
[1734952806453,3.13177084,3343.0,3342.1,0.6628]
[1734952806454,6.12311084,3343.0,3342.1,0.6628]
[1734952806657,2.9915,3342.8,3342.1,0.6628]
[1734952806908,2.9915,3342.8,3342.2,0.07653353]
[1734952807397,0.7973,3343.3,3342.3,0.6628]
[1734952807592,2.99124,3343.1,3342.3,0.6628]
[1734952807908,2.99124,3343.1,3342.4,0.0762908]
[1734952811080,0.7973,3343.6,3342.5,0.6628]
[1734952811410,0.7627,3343.9,3342.7,0.6628]
[1734952811618,2.99069,3343.8,3342.9,0.6628]
[1734952811841,0.7627,3343.9,3342.9,0.6628]
[1734952811842,2.99081,3343.6,3342.9,0.6628]
[1734952812003,0.7627,3343.9,3342.9,0.6628]
[1734952812336,2.99087,3343.6,3342.9,0.6628]
[1734952812700,2.99087,3343.6,3343.0,0.07553651]
[1734952814095,0.68849408,3343.8,3343.0,0.07553651]
[1734952814316,3.75327,3343.9,3342.9,0.6628]
[1734952814317,0.7627,3343.9,3342.9,0.6628]
[1734952814515,2.99069,3343.8,3342.9,0.6628]
[1734952814695,2.99087,3343.6,3343.0,0.07533979]
[1734952815835,2.99088,3343.5,3343.0,0.07533979]
[1734952816639,0.7627,3343.9,3343.0,0.07533979]
[1734952816640,3.7627,3343.9,3343.0,0.07533979]
[1734952816939,2.99051,3344.0,3343.1,0.6628]
[1734952817239,2.99026,3344.2,3343.1,0.6628]
[1734952817440,6.12185084,3344.4,3343.4,0.6628]
[1734952817749,0.3648698,3344.9,3343.6,0.6628]
[1734952817897,2.9905,3344.0,3343.6,0.6628]
[1734952818493,0.7804,3344.7,3343.7,0.07517589]
[1734952818927,0.7804,3344.7,3343.8,0.6628]
[1734952819523,0.7804,3344.7,3343.9,0.07517589]
[1734952819726,2.99,3344.5,3343.9,0.07517589]
[1734952820157,6.7702,3344.7,3343.9,0.07517589]
[1734952820514,2.98989,3344.6,3343.8,0.6628]
[1734952821152,2.98989,3344.6,3343.9,0.07517589]
[1734952821859,2.98945,3345.1,3344.0,0.6628]
[1734952822029,2.98919,3345.4,3344.3,0.55]
[1734952822210,2.98919,3345.4,3344.4,0.6628]
[1734952822613,2.98919,3345.4,3344.5,0.07395007]
[1734952823053,2.98938,3345.2,3344.6,0.6628]
[1734952823353,4.37619485,3345.9,3344.7,0.07395007]
[1734952823554,0.3648698,3345.8,3344.7,0.07395007]
[1734952823850,2.98934,3345.3,3344.7,0.07395007]
[1734952824662,2.98956,3345.0,3344.7,0.07395007]
[1734952825014,2.98908,3345.5,3344.7,0.07395007]
[1734952825213,3.0,3345.6,3344.7,0.07395007]
[1734952825514,3.0,3345.6,3344.8,0.07395007]
[1734952825909,3.0,3345.6,3344.6,0.6628]
[1734952826215,2.98923,3345.4,3344.9,0.07395007]
[1734952826410,2.98923,3345.4,3344.6,0.6628]
[1734952826827,2.98923,3345.4,3344.8,0.6628]
[1734952828137,0.7965,3345.9,3344.8,0.6628]
[1734952828344,2.9887,3346.0,3344.9,0.02989629]
[1734952828676,2.9887,3346.0,3344.9,0.6628]
[1734952828832,2.9887,3346.0,3345.1,0.6628]
[1734952829032,0.597707,3346.0,3345.1,0.6628]
[1734952829221,2.98837,3346.3,3345.2,0.07326876]
[1734952829575,2.98884,3345.8,3345.2,0.07326876]
[1734952830265,2.98864,3346.0,3345.2,0.07326876]
[1734952830511,0.7673,3346.4,3345.3,0.6628]
[1734952830654,2.98865,3346.0,3345.3,0.6628]
[1734952831543,2.98865,3346.0,3345.4,0.07326876]
[1734952831951,2.98865,3346.0,3345.3,0.6628]
[1734952832267,3.7673,3346.4,3345.3,0.6628]
[1734952832268,2.98874,3345.9,3345.3,0.6628]
[1734952832467,2.98874,3345.9,3345.4,0.07326876]
[1734952832672,2.98874,3345.9,3345.3,0.6628]
[1734952834492,3.79326,3347.1,3345.7,0.6628]
[1734952834646,6.11603036,3347.9,3345.9,0.6628]
[1734952834647,2.98782,3347.0,3345.9,0.6628]